fUST/lending_fUST_20250207
["ID","MTS","AMOUNT","RATE_DAILY","PERIOD"]
[352013231,1738878648489,-151.0,0.00014383,2]
[352013232,1738878648500,-775.3,0.00014383,2]
[352013233,1738878648512,-500.0,0.00014383,2]
[352013234,1738878648523,-1547.68,0.000144,2]
[352013235,1738878648536,-503.08834129,0.00014461,2]
[352013236,1738878648548,-500.0,0.00014461,2]
[352013237,1738878648560,-321.0,0.0001447,2]
[352013238,1738878648571,-1000.0,0.00014489,2]
[352013239,1738878648582,-151.0,0.0001452,2]
[352013240,1738878648594,-500.0,0.0001452,2]
[352013241,1738878648606,-500.0,0.0001452,2]
[352013242,1738878648617,-205.566037,0.0001452,2]
[352013243,1738878648627,-439.849649,0.0001452,2]
[352013244,1738878648638,-439.849649,0.0001452,2]
[352013245,1738878648650,-243.10431742,0.0001452,2]
[352013246,1738878648662,-500.0,0.0001452,2]
[352013247,1738878648674,-151.0,0.0001452,2]
[352013248,1738878648685,-178.365492,0.0001452,2]
[352013249,1738878648697,-151.0,0.0001452,2]
[352013250,1738878648709,-178.365492,0.0001452,2]
[352013251,1738878648720,-168.211163,0.0001452,2]
[352013252,1738878648735,-390.05104732,0.0001452,2]
[352013253,1738878648746,-186.426286,0.0001452,2]
[352013254,1738878648757,-186.426286,0.0001452,2]
[352013255,1738878648767,-151.0,0.0001452,2]
[352013256,1738878648778,-151.0,0.0001452,2]
[352013257,1738878648788,-500.0,0.0001452,2]
[352013258,1738878648798,-500.0,0.0001452,2]
[352013259,1738878648809,-600.0,0.0001452,2]
[352013260,1738878648819,-1113.91,0.0001452,2]
[352013261,1738878648829,-500.0,0.0001452,2]
[352013262,1738878648840,-500.0,0.0001452,2]
[352013263,1738878648850,-500.0,0.0001452,2]
[352013264,1738878648861,-765.24,0.0001452,2]
[352013265,1738878648871,-500.0,0.0001452,2]
[352013266,1738878648882,-792.94,0.0001452,2]
[352013267,1738878648894,-2188.27,0.0001452,2]
[352013268,1738878648904,-500.0,0.0001452,2]
[352013269,1738878648915,-2751.56,0.0001452,2]
[352013270,1738878648925,-1033.57,0.0001452,2]
[352013271,1738878648934,-500.0,0.0001452,2]
[352013272,1738878648944,-717.28,0.0001452,2]
[352013273,1738878648955,-875.79,0.0001452,2]
[352013274,1738878648965,-500.0,0.0001452,2]
[352013275,1738878648978,-500.0,0.0001452,2]
[352013276,1738878648989,-500.0,0.0001452,2]
[352013277,1738878648999,-923.32,0.0001452,2]
[352013278,1738878649010,-500.0,0.0001452,2]
[352013279,1738878649020,-1665.93,0.0001452,2]
[352013280,1738878649030,-9508.99,0.0001452,2]
[352013281,1738878649040,-500.0,0.0001452,2]
[352013282,1738878649050,-500.0,0.0001452,2]
[352013283,1738878649060,-5384.55,0.0001452,2]
[352013284,1738878649070,-500.0,0.0001452,2]
[352013285,1738878649080,-500.0,0.0001452,2]
[352013286,1738878649090,-775.3,0.0001452,2]
[352013287,1738878649100,-500.0,0.0001452,2]
[352013288,1738878649110,-575.0,0.000146,5]
[352013289,1738878649120,-151.0,0.000146,2]
[352013290,1738878649129,-153.392887,0.000146,2]
[352013291,1738878649139,-151.0,0.000146,2]
[352013292,1738878649149,-172.084125,0.000146,2]
[352013293,1738878649160,-172.084125,0.000146,2]
[352013294,1738878649170,-151.0,0.000146,2]
[352013295,1738878649182,-1233.73195346,0.00014604,2]
[352013296,1738878649192,-218.75295193,0.00014609,2]
[352013297,1738878649202,-150.0,0.00014615,2]
[352013298,1738878649213,-537.0,0.00014615,2]
[352013299,1738878649223,-1975.0,0.00014615,2]
[352013300,1738878649233,-2297.0,0.00014615,2]
[352013301,1738878649244,-150.0,0.00014615,2]
[352013302,1738878649254,-396.0,0.00014615,2]
[352013303,1738878649265,-394.28,0.0001462,2]
[352013304,1738878649275,-156.277,0.00014624,2]
[352013305,1738878649285,-500.0,0.00014657,2]
[352013306,1738878649295,-589.96,0.00014657,2]
[352013307,1738878649305,-500.0,0.00014657,2]
[352013308,1738878649442,-500.0,0.00014657,2]
[352013309,1738878649453,-500.0,0.00014657,2]
[352013310,1738878649463,-1113.91,0.00014657,2]
[352013311,1738878649476,-500.0,0.00014657,2]
[352013312,1738878649487,-500.0,0.00014657,2]
[352013313,1738878649497,-500.0,0.00014657,2]
[352013314,1738878649507,-765.24,0.00014657,2]
[352013315,1738878649517,-500.0,0.00014657,2]
[352013316,1738878649527,-792.94,0.00014657,2]
[352013317,1738878649538,-173.918395,0.00014657,2]
[352013318,1738878649548,-173.918395,0.00014657,2]
[352013319,1738878649560,-2188.27,0.00014657,2]
[352013320,1738878649570,-151.0,0.00014657,2]
[352013321,1738878649581,-500.0,0.00014657,2]
[352013322,1738878649591,-151.0,0.00014657,2]
[352013323,1738878649601,-151.0,0.00014657,2]
[352013324,1738878649610,-2751.56,0.00014657,2]
[352013325,1738878649620,-1033.57,0.00014657,2]
[352013326,1738878649631,-500.0,0.00014657,2]
[352013327,1738878649641,-151.0,0.00014657,2]
[352013328,1738878649651,-717.28,0.00014657,2]
[352013329,1738878649661,-875.79,0.00014657,2]
[352013330,1738878649671,-500.0,0.00014657,2]
[352013331,1738878649682,-500.0,0.00014657,2]
[352013332,1738878649693,-500.0,0.00014657,2]
[352013333,1738878649703,-923.32,0.00014657,2]
[352013334,1738878649715,-500.0,0.00014657,2]
[352013335,1738878649728,-1665.93,0.00014657,2]
[352013336,1738878649738,-9508.99,0.00014657,2]
[352013337,1738878649748,-500.0,0.00014657,2]
[352013338,1738878649757,-500.0,0.00014657,2]
[352013339,1738878649769,-5384.55,0.00014657,2]
[352013340,1738878649779,-500.0,0.00014657,2]
[352013341,1738878649789,-500.0,0.00014657,2]
[352013342,1738878649799,-775.3,0.00014657,2]
[352013343,1738878649809,-500.0,0.00014657,2]
[352013344,1738878649819,-1200.0,0.00014678,2]
[352013345,1738878649829,-151.0,0.00014694,2]
[352013346,1738878649839,-151.0,0.00014694,2]
[352013347,1738878649848,-151.0,0.00014694,2]
[352013348,1738878649858,-827.106435,0.00014694,2]
[352013349,1738878649868,-827.106435,0.00014694,2]
[352013350,1738878649878,-386.208792,0.00014694,2]
[352013351,1738878649888,-386.208792,0.00014694,2]
[352013352,1738878649898,-151.0,0.00014694,2]
[352013353,1738878649909,-151.0,0.00014694,2]
[352013354,1738878649921,-151.0,0.00014694,2]
[352013355,1738878649931,-151.0,0.00014694,2]
[352013356,1738878649941,-151.0,0.00014694,2]
[352013357,1738878649951,-151.0,0.00014694,2]
[352013358,1738878649961,-151.0,0.00014694,2]
[352013359,1738878649971,-3000.0,0.000147,30]
[352013360,1738878649984,-151.0,0.00014704,2]
[352013361,1738878649994,-186.426286,0.00014704,2]
[352013362,1738878650004,-186.426286,0.00014704,2]
[352013363,1738878650015,-151.0,0.00014704,2]
[352013364,1738878650025,-151.0,0.00014704,2]
[352013365,1738878650035,-151.0,0.00014704,2]
[352013366,1738878650045,-151.0,0.00014704,2]
[352013367,1738878650054,-1233.73195346,0.00014704,2]
[352013368,1738878650063,-3000.0,0.0001471,30]
[352013369,1738878650073,-3000.0,0.0001472,30]
[352013370,1738878650083,-151.0,0.0001472,2]
[352013371,1738878650092,-178.365492,0.0001472,2]
[352013372,1738878650102,-178.365492,0.0001472,2]
[352013373,1738878650112,-163.159487,0.00014727,2]
[352013374,1738878650121,-3000.0,0.0001473,30]
[352013375,1738878650131,-5430.8094,0.0001474,30]
[352013376,1738878650141,-744.0827726,0.00014767,2]
[352013377,1738878650151,-151.0,0.00014794,2]
[352013378,1738878650161,-500.0,0.00014794,2]
[352013379,1738878650170,-244.136295,0.00014794,2]
[352013380,1738878650180,-172.084125,0.00014794,2]
[352013381,1738878650189,-172.084125,0.00014794,2]
[352013382,1738878650199,-243.755405,0.00014794,2]
[352013383,1738878650208,-439.849649,0.00014794,2]
[352013384,1738878650218,-439.849649,0.00014794,2]
[352013385,1738878650230,-500.0,0.00014794,2]
[352013386,1738878650239,-500.0,0.00014794,2]
[352013387,1738878650249,-500.0,0.00014794,2]
[352013388,1738878650259,-1113.91,0.00014794,2]
[352013389,1738878650268,-500.0,0.00014794,2]
[352013390,1738878650279,-500.0,0.00014794,2]
[352013391,1738878650288,-500.0,0.00014794,2]
[352013392,1738878650297,-765.24,0.00014794,2]
[352013393,1738878650307,-500.0,0.00014794,2]
[352013394,1738878650316,-792.94,0.00014794,2]
[352013395,1738878650326,-2188.27,0.00014794,2]
[352013396,1738878650335,-500.0,0.00014794,2]
[352013397,1738878650345,-2751.56,0.00014794,2]
[352013398,1738878650354,-1033.57,0.00014794,2]
[352013399,1738878650367,-500.0,0.00014794,2]
[352013400,1738878650376,-717.28,0.00014794,2]
[352013401,1738878650386,-875.79,0.00014794,2]
[352013402,1738878650395,-500.0,0.00014794,2]
[352013403,1738878650406,-500.0,0.00014794,2]
[352013404,1738878650416,-500.0,0.00014794,2]
[352013405,1738878650425,-923.32,0.00014794,2]
[352013406,1738878650434,-500.0,0.00014794,2]
[352013407,1738878650445,-1665.93,0.00014794,2]
[352013408,1738878650455,-47.78957295,0.00014794,2]
[352013409,1738878650582,-500.0,0.00013698,2]
[352013410,1738878650592,-9461.20042705,0.00014794,2]
[352013411,1738878650602,-500.0,0.00014794,2]
[352013412,1738878650613,-500.0,0.00014794,2]
[352013413,1738878650623,-5384.55,0.00014794,2]
[352013414,1738878650633,-500.0,0.00014794,2]
[352013415,1738878650643,-265.567482,0.00014794,2]
[352013416,1738878650654,-500.0,0.00014794,2]
[352013417,1738878650665,-151.0,0.00014794,2]
[352013418,1738878650675,-775.3,0.00014794,2]
[352013419,1738878650684,-500.0,0.00014794,2]
[352013420,1738878650694,-1233.73195346,0.00014804,2]
[352013421,1738878650703,-151.0,0.00014818,2]
[352013422,1738878650713,-151.0,0.00014818,2]
[352013423,1738878650725,-151.0,0.00014818,2]
[352013424,1738878650735,-151.0,0.00014818,2]
[352013425,1738878650744,-151.0,0.00014818,2]
[352013426,1738878650754,-151.0,0.00014818,2]
[352013427,1738878650764,-151.0,0.00014818,2]
[352013428,1738878650773,-151.0,0.00014818,2]
[352013429,1738878650783,-151.0,0.00014818,2]
[352013430,1738878650793,-151.0,0.00014818,2]
[352013431,1738878650804,-151.0,0.00014818,2]
[352013432,1738878650813,-151.0,0.00014818,2]
[352013433,1738878650822,-151.0,0.00014818,2]
[352013434,1738878650831,-156.43,0.00014818,2]
[352013435,1738878650841,-155.0,0.00014818,2]
[352013436,1738878650850,-155.0,0.00014818,2]
[352013437,1738878650859,-155.0,0.00014818,2]
[352013438,1738878650869,-155.0,0.00014818,2]
[352013439,1738878650878,-155.0,0.00014818,2]
[352013440,1738878650887,-155.0,0.00014818,2]
[352013441,1738878650897,-155.0,0.00014818,2]
[352013442,1738878650906,-155.0,0.00014818,2]
[352013443,1738878650915,-155.0,0.00014818,2]
[352013444,1738878650924,-155.0,0.00014818,2]
[352013445,1738878650933,-155.0,0.00014818,2]
[352013446,1738878650943,-155.0,0.00014818,2]
[352013447,1738878650952,-155.0,0.00014818,2]
[352013448,1738878650962,-155.0,0.00014818,2]
[352013449,1738878650971,-155.0,0.00014818,2]
[352013450,1738878650983,-155.0,0.00014818,2]
[352013451,1738878650992,-155.0,0.00014818,2]
[352013452,1738878651001,-155.0,0.00014818,2]
[352013453,1738878651011,-204.26,0.00014818,2]
[352013454,1738878651020,-2692.44897622,0.000149,2]
[352013455,1738878651030,-218.75295193,0.000149,2]
[352013456,1738878651040,-1233.73195346,0.00014904,2]
[352013457,1738878651049,-22603.00016514,0.00014917,2]
[352013458,1738878651059,-155.0,0.00014929,2]
[352013459,1738878651068,-155.0,0.00014929,2]
[352013460,1738878651077,-155.0,0.00014929,2]
[352013461,1738878651086,-155.0,0.00014929,2]
[352013462,1738878651097,-155.0,0.00014929,2]
[352013463,1738878651107,-155.0,0.00014929,2]
[352013464,1738878651116,-155.0,0.00014929,2]
[352013465,1738878651127,-155.0,0.00014929,2]
[352013466,1738878651137,-155.0,0.00014929,2]
[352013467,1738878651147,-155.0,0.00014929,2]
[352013468,1738878651157,-155.0,0.00014929,2]
[352013469,1738878651166,-155.0,0.00014929,2]
[352013470,1738878651175,-155.0,0.00014929,2]
[352013471,1738878651185,-155.0,0.00014929,2]
[352013472,1738878651195,-269.54,0.00014929,2]
[352013473,1738878651206,-500.0,0.00014931,2]
[352013474,1738878651215,-500.0,0.00014931,2]
[352013475,1738878651224,-500.0,0.00014931,2]
[352013476,1738878651234,-500.0,0.00014931,2]
[352013477,1738878651243,-1113.91,0.00014931,2]
[352013478,1738878651252,-500.0,0.00014931,2]
[352013479,1738878651264,-500.0,0.00014931,2]
[352013480,1738878651273,-500.0,0.00014931,2]
[352013481,1738878651282,-765.24,0.00014931,2]
[352013482,1738878651294,-500.0,0.00014931,2]
[352013483,1738878651303,-792.94,0.00014931,2]
[352013484,1738878651313,-173.918395,0.00014931,2]
[352013485,1738878651324,-173.918395,0.00014931,2]
[352013486,1738878651334,-2188.27,0.00014931,2]
[352013487,1738878651343,-151.0,0.00014931,2]
[352013488,1738878651353,-500.0,0.00014931,2]
[352013489,1738878651365,-151.0,0.00014931,2]
[352013490,1738878651376,-2751.56,0.00014931,2]
[352013491,1738878651385,-1033.57,0.00014931,2]
[352013492,1738878651394,-500.0,0.00014931,2]
[352013493,1738878651405,-151.0,0.00014931,2]
[352013494,1738878651415,-717.28,0.00014931,2]
[352013495,1738878651424,-875.79,0.00014931,2]
[352013496,1738878651433,-500.0,0.00014931,2]
[352013497,1738878651445,-500.0,0.00014931,2]
[352013498,1738878651454,-190.84443925,0.00014931,2]
[352013499,1738878651464,-923.32,0.00014931,2]
[352013500,1738878651474,-500.0,0.00014931,2]
[352013501,1738878651484,-1665.93,0.00014931,2]
[352013502,1738878651494,-9508.99,0.00014931,2]
[352013503,1738878651504,-500.0,0.00014931,2]
[352013504,1738878651514,-500.0,0.00014931,2]
[352013505,1738878651525,-5384.55,0.00014931,2]
[352013506,1738878651534,-500.0,0.00014931,2]
[352013507,1738878651546,-500.0,0.00014931,2]
[352013508,1738878651557,-775.3,0.00014931,2]
[352013509,1738878651568,-500.0,0.00014931,2]
[352013510,1738878651577,-566.9160785,0.00014973,2]
[352013511,1738878651587,-500.0,0.00014973,2]
[352013512,1738878651596,-382.08576568,0.00014973,2]
[352013513,1738878651606,-500.0,0.00014973,2]
[352013514,1738878651616,-500.0,0.00014973,2]
[352013515,1738878651628,-500.0,0.00014973,2]
[352013516,1738878651637,-500.0,0.00014973,2]
[352013517,1738878651647,-500.0,0.00014973,2]
[352013518,1738878651656,-500.0,0.00014973,2]
[352013519,1738878651667,-500.0,0.00014973,2]
[352013520,1738878651677,-500.0,0.00014973,2]
[352013521,1738878651686,-571.46986804,0.00014973,2]
[352013522,1738878651696,-500.0,0.00014973,2]
[352013523,1738878651706,-500.0,0.00014973,2]
[352013524,1738878651715,-500.0,0.00014973,2]
[352013525,1738878651724,-151.0,0.00014973,2]
[352013526,1738878651734,-151.0,0.00014973,2]
[352013527,1738878651744,-153.600231,0.00014973,2]
[352013528,1738878651753,-151.0,0.00014973,2]
[352013529,1738878651763,-2000.0,0.00015,2]
[352013530,1738878651772,-239543.72112383,0.00015,2]
[352013544,1738879557110,-683.27567124,0.00012835,2]
[352013556,1738879652101,-1176.34046235,0.00012835,2]
[352013557,1738879654102,-87.41225631,0.00012835,2]
[352013558,1738879654128,-114.82347077,0.00012835,2]
[352013559,1738879694284,700.0,0.00010968,2]
[352013561,1738879758179,-673.1228,0.00012338,2]
[352013562,1738879763121,-26.8772,0.00012338,2]
[352013563,1738879763142,-300.0,0.00012616,2]
[352013564,1738879763165,-10354.62665002,0.00012617,2]
[352013609,1738879832840,-229.24466058,0.00012617,2]
[352013611,1738879832849,-82.27218517,0.00012835,2]
[352013613,1738879832862,-9.72240556,0.00012835,2]
[352013615,1738879832873,-500.95856479,0.00013095,2]
[352013617,1738879832882,-227.5767209,0.00013475,2]
[352013619,1738879832891,-540.30078707,0.00013598,2]
[352013621,1738879832901,-300.0,0.00013697,2]
[352013624,1738879832910,-500.0,0.00013698,2]
[352013627,1738879832920,-500.0,0.00013698,2]
[352013630,1738879832930,-500.0,0.00013698,2]
[352013633,1738879832940,-500.0,0.00013698,2]
[352013636,1738879832951,-500.0,0.00013698,2]
[352013639,1738879832960,-572.91431078,0.00013698,2]
[352013641,1738879832969,-500.0,0.00013698,2]
[352013643,1738879832978,-151.59,0.00013698,2]
[352013645,1738879832988,-928.25,0.00013698,2]
[352013648,1738879832998,-552.57,0.00013698,2]
[352013651,1738879833007,-543.08677224,0.00013698,2]
[352013654,1738879833017,-500.0,0.00013698,2]
[352013657,1738879833026,-207.53,0.00013698,2]
[352013660,1738879833037,-637.7,0.00013698,2]
[352013663,1738879833047,-500.0,0.00013698,2]
[352013666,1738879833057,-660.78,0.00013698,2]
[352013668,1738879833066,-2292.97,0.00013698,2]
[352013670,1738879833076,-1823.56,0.00013698,2]
[352013672,1738879833086,-500.0,0.00013698,2]
[352013674,1738879833096,-500.0,0.00013698,2]
[352013677,1738879833106,-861.31,0.00013698,2]
[352013679,1738879833115,-500.0,0.00013698,2]
[352013681,1738879833125,-457.42846534,0.00013698,2]
[352013683,1738879833135,-500.0,0.00013698,2]
[352013684,1738879833144,-729.83,0.00013698,2]
[352013686,1738879833154,-500.0,0.00013698,2]
[352013689,1738879833163,-500.0,0.00013698,2]
[352013691,1738879833173,-500.0,0.00013698,2]
[352013693,1738879833182,-7529.94,0.00013698,2]
[352013694,1738879833191,-769.43,0.00013698,2]
[352013696,1738879833202,-597.73,0.00013698,2]
[352013698,1738879833212,-500.0,0.00013698,2]
[352013700,1738879833223,-1388.28,0.00013698,2]
[352013703,1738879833233,-4487.13,0.00013698,2]
[352013704,1738879833242,-500.0,0.00013698,2]
[352013706,1738879833252,-500.0,0.00013698,2]
[352013708,1738879833262,-500.0,0.00013698,2]
[352013711,1738879833273,-500.0,0.00013698,2]
[352013713,1738879833282,-500.0,0.00013698,2]
[352013715,1738879833292,-500.0,0.00013698,2]
[352013717,1738879833301,-500.0,0.00013698,2]
[352013719,1738879833311,-500.0,0.00013698,2]
[352013721,1738879833322,-646.08,0.00013698,2]
[352013723,1738879833331,-500.0,0.00013698,2]
[352013725,1738879833341,-500.0,0.00013698,2]
[352013727,1738879833351,-500.0,0.00013698,2]
[352013729,1738879833360,-552.57,0.00013834,2]
[352013731,1738879833370,-552.57,0.00013834,2]
[352013733,1738879833380,-500.0,0.00013835,2]
[352013735,1738879833390,-500.0,0.00013835,2]
[352013737,1738879833400,-500.0,0.00013835,2]
[352013739,1738879833409,-500.0,0.00013835,2]
[352013741,1738879833419,-500.0,0.00013835,2]
[352013743,1738879833429,-928.25,0.00013835,2]
[352013745,1738879833439,-500.0,0.00013835,2]
[352013747,1738879833450,-637.7,0.00013835,2]
[352013749,1738879833459,-500.0,0.00013835,2]
[352013751,1738879833469,-660.78,0.00013835,2]
[352013753,1738879833478,-2292.97,0.00013835,2]
[352013755,1738879833488,-1823.56,0.00013835,2]
[352013757,1738879833498,-500.0,0.00013835,2]
[352013759,1738879833507,-500.0,0.00013835,2]
[352013761,1738879833516,-861.31,0.00013835,2]
[352013763,1738879833526,-500.0,0.00013835,2]
[352013765,1738879833536,-500.0,0.00013835,2]
[352013767,1738879833545,-729.83,0.00013835,2]
[352013769,1738879833555,-500.0,0.00013835,2]
[352013771,1738879833565,-272.06045479,0.00013835,2]
[352013773,1738879833575,-500.0,0.00013835,2]
[352013775,1738879833584,-5635.76561802,0.00013835,2]
[352013779,1738879833614,-1894.17438198,0.00013835,2]
[352013781,1738879833624,-769.43,0.00013835,2]
[352013783,1738879833633,-597.73,0.00013835,2]
[352013785,1738879833643,-223.4893377,0.00013835,2]
[352014080,1738879840798,-87.0724951,0.00013835,2]
[352014082,1738879840808,-1388.28,0.00013835,2]
[352014084,1738879840818,-4487.13,0.00013835,2]
[352014085,1738879840827,-500.0,0.00013835,2]
[352014086,1738879840836,-396.27449045,0.00013835,2]
[352014088,1738879840845,-500.0,0.00013835,2]
[352014089,1738879840854,-500.0,0.00013835,2]
[352014091,1738879840863,-500.0,0.00013835,2]
[352014093,1738879840873,-593.96881118,0.00013835,2]
[352014095,1738879840883,-500.0,0.00013835,2]
[352014097,1738879840892,-500.0,0.00013835,2]
[352014099,1738879840902,-646.08,0.00013835,2]
[352014101,1738879840911,-500.0,0.00013835,2]
[352014103,1738879840921,-500.0,0.00013835,2]
[352014105,1738879840930,-500.0,0.00013835,2]
[352014107,1738879840940,-154.5349496,0.0001389,2]
[352014109,1738879840949,-215.7447597,0.0001389,2]
[352014111,1738879840960,-552.57,0.00013971,2]
[352014113,1738879840970,-243.10431742,0.00013972,2]
[352014115,1738879840980,-500.0,0.00013972,2]
[352014117,1738879840989,-390.05104732,0.00013972,2]
[352014119,1738879840998,-500.0,0.00013972,2]
[352014121,1738879841008,-500.0,0.00013972,2]
[352014123,1738879841017,-928.25,0.00013972,2]
[352014125,1738879841026,-500.0,0.00013972,2]
[352014127,1738879841036,-637.7,0.00013972,2]
[352014129,1738879841045,-500.0,0.00013972,2]
[352014131,1738879841054,-660.78,0.00013972,2]
[352014133,1738879841064,-982.44521573,0.00013972,2]
[352014215,1738879843310,600.0,0.00010409,2]
[352014243,1738879843858,-500.0,0.00013698,2]
[352014244,1738879843870,-380.5770232,0.00013698,2]
[352014245,1738879843880,-500.0,0.00013833,2]
[352014246,1738879843889,-190.97911353,0.00013834,2]
[352014247,1738879843900,-309.02088647,0.00013834,2]
[352014249,1738879843910,-500.0,0.00013971,2]
[352014251,1738879843920,-500.0,0.00013971,2]
[352014253,1738879843930,-1310.52478427,0.00013972,2]
[352014254,1738879843939,-840.40946291,0.00013972,2]
[352014255,1738879844935,600.0,0.00011779,2]
[352014269,1738879846863,-600.0,0.00013149,2]
[352014270,1738879846873,-500.0,0.00013698,2]
[352014271,1738879846883,-500.0,0.00013835,2]
[352014272,1738879846893,-983.15053709,0.00013972,2]
[352014273,1738879846903,-500.0,0.00013972,2]
[352014274,1738879846913,-500.0,0.00013972,2]
[352014275,1738879846923,-861.31,0.00013972,2]
[352014276,1738879846931,-500.0,0.00013972,2]
[352014278,1738879846942,-500.0,0.00013972,2]
[352014280,1738879846952,-729.83,0.00013972,2]
[352014282,1738879846963,-500.0,0.00013972,2]
[352014283,1738879846972,-500.0,0.00013972,2]
[352014284,1738879846982,-7529.94,0.00013972,2]
[352014285,1738879846992,-769.43,0.00013972,2]
[352014286,1738879847002,-597.73,0.00013972,2]
[352014287,1738879847013,-1388.28,0.00013972,2]
[352014288,1738879847023,-4487.13,0.00013972,2]
[352014289,1738879847033,-500.0,0.00013972,2]
[352014290,1738879847043,-500.0,0.00013972,2]
[352014291,1738879847053,-500.0,0.00013972,2]
[352014292,1738879847073,-500.0,0.00013972,2]
[352014293,1738879847085,-500.0,0.00013972,2]
[352014294,1738879847095,-500.0,0.00013972,2]
[352014295,1738879847104,-646.08,0.00013972,2]
[352014296,1738879847115,-500.0,0.00013972,2]
[352014297,1738879847125,-500.0,0.00013972,2]
[352014298,1738879847135,-500.0,0.00013972,2]
[352014299,1738879847144,-400.0,0.00013973,2]
[352014300,1738879847154,-500.0,0.00014107,2]
[352014301,1738879847165,-500.0,0.00014108,2]
[352014302,1738879847176,-500.0,0.00014109,2]
[352014303,1738879847186,-500.0,0.00014109,2]
[352014304,1738879847197,-500.0,0.00014109,2]
[352014305,1738879847207,-928.25,0.00014109,2]
[352014306,1738879847218,-500.0,0.00014109,2]
[352014307,1738879847229,-637.7,0.00014109,2]
[352014308,1738879847239,-500.0,0.00014109,2]
[352014309,1738879847250,-660.78,0.00014109,2]
[352014310,1738879847262,-2292.97,0.00014109,2]
[352014311,1738879847278,-1823.56,0.00014109,2]
[352014312,1738879847291,-500.0,0.00014109,2]
[352014313,1738879847302,-500.0,0.00014109,2]
[352014314,1738879847312,-861.31,0.00014109,2]
[352014315,1738879847322,-500.0,0.00014109,2]
[352014316,1738879847333,-500.0,0.00014109,2]
[352014317,1738879847343,-729.83,0.00014109,2]
[352014318,1738879847354,-500.0,0.00014109,2]
[352014319,1738879847364,-500.0,0.00014109,2]
[352014320,1738879847377,-7529.94,0.00014109,2]
[352014321,1738879847391,-769.43,0.00014109,2]
[352014322,1738879847401,-597.73,0.00014109,2]
[352014323,1738879847412,-1388.28,0.00014109,2]
[352014324,1738879847423,-4487.13,0.00014109,2]
[352014325,1738879847433,-500.0,0.00014109,2]
[352014326,1738879847444,-500.0,0.00014109,2]
[352014327,1738879847455,-500.0,0.00014109,2]
[352014328,1738879847466,-500.0,0.00014109,2]
[352014329,1738879847476,-500.0,0.00014109,2]
[352014330,1738879847487,-500.0,0.00014109,2]
[352014331,1738879847497,-646.08,0.00014109,2]
[352014332,1738879847508,-500.0,0.00014109,2]
[352014333,1738879847519,-500.0,0.00014109,2]
[352014334,1738879847531,-500.0,0.00014109,2]
[352014335,1738879847542,-540.300787,0.00014213,2]
[352014336,1738879847552,-379.07715787,0.0001424,2]
[352014337,1738879847562,-500.0,0.0001424,2]
[352014338,1738879847573,-500.0,0.0001424,2]
[352014339,1738879847583,-500.0,0.0001424,2]
[352014340,1738879847593,-500.0,0.0001424,2]
[352014341,1738879847603,-500.0,0.0001424,2]